{"text_format":"1","workbook":"xlsx","n_sheets":1,"sheets":["Troškovnik"],"not_rendered":{"charts":0,"images":0,"macros":1,"external_links":0,"defined_names":1,"comments":0,"pivot_tables":0},"unopened":[],"bounds":{"document_bytes":16777216,"sheet_cells":100000,"rows_first":2000,"rows_last":500,"rows_between":2000,"halvings":0,"cell_chars":16384,"cell_head_chars":4096},"cells_cut":0,"cells_raw":0,"read":"whole","date_system":"1900"}

{"sheet":"Troškovnik","index":0,"n_rows":53,"n_cols":11,"rows_kept":53,"cut":false,"hidden":false,"merged":[[33,5,33,7],[15,1,15,4],[25,1,25,8],[27,1,27,4],[28,1,28,4],[29,5,29,7],[49,1,49,7],[37,5,37,7],[16,5,16,7],[9,1,9,4],[7,1,7,4],[12,1,12,4],[13,1,13,4],[14,1,14,4],[10,1,10,4],[8,1,8,4],[23,5,23,7],[20,1,20,4],[21,1,21,4],[22,1,22,4],[26,1,26,4],[39,1,39,8],[1,0,1,10],[2,0,2,10],[25,9,25,10],[48,1,48,7],[46,1,46,7],[47,1,47,7],[4,1,4,4],[43,1,43,7],[44,1,44,7],[45,1,45,7],[40,1,40,4],[41,5,41,7],[35,1,35,8],[36,1,36,4],[31,1,31,8],[32,1,32,4]]}
[]
["Za sve norme, tipove i modele ili brendove navedene u troškovniku primjenjuje se „ili jednakovrijedno“ za stavke troškovnika"]
[]
[]
["R.br (A)","OPIS OPREME (B)",null,null,null,"JED. MJERE (C)","KOLIČINA (D)","JEDINIČNA CIJENA (E)","UKUPNA CIJENA (F)","JEDNAKOVRIJEDNI PROIZVOD DA/NE (G)","Proizvođač, tip ili model proizvoda; Referenca na stranicu iz kataloga (H)"]
[null,"Komponenta"]
["A","VENTILACIJA LAKIRNICE"]
["1.","Otsisna stijena lakirnice sa suhim postupkom filtracije slijedećih karakteristika:\n- minimalno dva stupnja filtracije (filtar i predfiltar),\n- dimenzije 2070x2320x540 mm,\n- količina zraka minimalno 6.000 m3/h.\nStijena je sastavljena iz pocinčanih panela i plastificiranih okvira.",null,null,null,"kompl.",1,0,{"$f":"G8*H8","v":0}]
["2.","Otsisni centrifugalni ventilator lakirnice u odgovarajućoj protueksplozijskoj izvedbi (prema požanom elaboratu) za količnu zraka do minimalno 6.000 m³/h sa uključenim motorom u kompletu.",null,null,null,"kompl.",1,0,{"$f":"G9*H9","v":0}]
["3.","Gazište lakirnice izrađeno iz podnih pocinčanih rešetki u kompletu sa stop lak filtrom dimenzija 2x2 m.",null,null,null,"kompl.",1,0,0]
["4.","Pripadajući otsisni i tlačni cjevovod sustava ventilacije lakirnice izrađen od pocinčanog lima deb. 0,6-1,25 mm, uključivo sa svim potrebnim fazonskim elementima, cijevima, koljenima, zasunima i deflektorom za izlaz zraka. Cjevovod se isporučuje u kompletu sa svim potrebnim montažnim i ovjesnim materijalom.",null,null,null,"kompl.",1,0,0]
[null,"Komponenta"]
["5.","Jedinica za dobavu čistog i po potrebi zagrijanog zraka - termogen na zemni plin slijedećih karakteristika/elemenata:\n- Kapacitet do 7.000 m³/h,\n- Vertikalna izvedba za vanjsku ugradnju,\n- Ulazne sekcije sa pred filtrom tip G4 ili jednakovrijedan,\n- Ventilator i motor u standardnoj izvedbi\n- Pogonsko gorivo: zemi plin\n- Plinska rampa i plamenik,\n- Dimnjak.\nJedinica treba biti smještena u prostoru koji nije zona opasnosti od eksplozije.",null,null,null,"kompl.",1,0,{"$f":"G13*H13","v":0}]
["6.","Istrujni dobavni strop lakirnice sastavljen od nosive konstrukcije i filtara EU5 ili jednakovrijednih u okviru. \nStrop se montira u postoru lakirnice iznad radnog mjesta.",null,null,null,"kompl.",1,0,{"$f":"G14*H14","v":0}]
["7.","Pripadajući otsisni i tlačni kanali sustava dobave lakirnice izrađeni od pocinčanog lima deb. 0,6-1,25mm, uključivo sa svim potrebnim fazonskim elementima, kanalima, koljenima, zasunima i sl.\nKanali se isporučuju u kompletu sa svim potrebnim montažnim i ovjesnim materijalom.",null,null,null,"kompl.",1,0,0]
["8.","Atestirana ručna protupožarna zaklopka\nsa signalizacijom krajnjeg položaja u standardnoj izvedbi",null,null,null,"kompl.",1,0,0]
[null,null,null,null,null,"UKUPNO A., Kn:",null,null,{"$f":"I8+I9+I10+I11+I13+I14+I15+I16","v":0}]
[]
["Poz.","Komponenta",null,null,null,"Jed. Mjera","Kol","Jed. Cijena, Kn","Iznos, Kn"]
["B","VENTILACIJA PROSTORA SKLADIŠTA"]
["1.","Otsisni centrifugalni ventilator prostora skladišta u odgovarajućoj protueksplozijskoj izvedbi (prema požanom elaboratu) ukupnog kapaciteta do 1.000 m³/h u kompletu sa motorom.",null,null,null,"kompl.",1,0,{"$f":"H21*G21","v":0}]
["2.","Gazište prostora skladišta izrađeno iz podnih pocinčanih rešetki u kompletu sa stop lak filtrom.",null,null,null,"kompl.",1,0,{"$f":"H22*G22","v":0}]
["3.","Pripadajući otsisni i tlačni cjevovod sustava ventilacije skladišta izrađen od pocinčanog lima deb. 0,6-1,25mm, uključivo sa svim potrebnim fazonskim elementima, cijevima, koljenima, zasunima i deflektorom za izlaz zraka. Cjevovod se isporučuje u kompletu sa svim potrebnim montažnim i ovjesnim materijalom.",null,null,null,"kompl.",1,0,{"$f":"H23*G23","v":0}]
[null,null,null,null,null,"UKUPNO B., Kn:",null,null,{"$f":"SUM(I21:I23)","v":0}]
[]
["C.","ELEKTROINSTALACIJE"]
["1.","Razvodni ormar automatike i napajanja svih potrošača u svemu prema uvjetima MUP ili jednakovrijednima - Sektora za eksplozivne atmosfere;\n- frekvencijski pretvarači za upravljanje \n  motorima ventilatora (regulacija \n  podtlak/nadtlak)\n- potpuna automatika vođenja procesa \n  lakiranja preko PLC-a koja \n  podrazumijeva:\n- predventilaciju\n- kontrolu ispravnosti ventilacije\n- kontrolu zatvorenosti vrata\n- kontrolu zaštopanosti filtra\n- blokadu EMV-a ili jednakovrijednog pištolja za lakiranje\n- postventilaciju\n- regulaciju temperature u prostoru.\nU cijenu su uključeni svi potrebni kablovi do 15 tm i senzori.",null,null,null,"kompl.",1,0,{"$f":"H27*G27","v":0}]
["2.","Rasvjetna tjela lakirnice i skladišta 2x36W u odgovarajućoj Ex izvedbi (prema požanom elaboratu).",null,null,null,"kom.",8,0,0]
["3.","Panik rasvjeta u Ex izvedbi (prema požarnom elaboratu).",null,null,null,"kom.",2,0,0]
[null,null,null,null,null,"UKUPNO C., Kn:",null,null,{"$f":"(SUM(I27:I29))","v":0}]
[]
["D.","DODATNA OPREMA LAKIRNICE"]
["1.","Dodatna oprema lakirnice uključivo sa \n- zrača prskalica tip SATA jet1000 BRP ili jednakovrijedna\n- zračno crijevo antistatik NO 9mm, \n  L= 10 m u kompletu sa spojnicama i \n  izjavom o ispitivanju od strane MUP -\n  Sektora za eksplozivne atmosfere.",null,null,null,"kompl.",2,0,{"$f":"H33*G33","v":0}]
[null,null,null,null,null,"UKUPNO D., Kn:",null,null,{"$f":"SUM(I33)","v":0}]
[]
["E.","MONTAŽA SUSTAVA VENTILACIJE"]
["1.","Transport robe i kompletna montaža opreme po principu ključ u ruke.\nU cijenu je uključeno i sljedeće:\n- trošak puta i boravka montera,\n- ispitivanja elektroinstalacija i povezivanje\n  potrošača od ovlaštene tvrtke uz \n  izdavanje ispitnog protokola neophodnog\n  za nalaz MUP - Sektora za eksplozivne\n  atmosfere,\n- aerodinamička mjerenja, obuka \n  operatera za rukovannje sustavom i \n  puštanje sustava u rad.",null,null,null,"kompl.",1,0,{"$f":"H37*G37","v":0}]
[null,null,null,null,null,"UKUPNO E., Kn:",null,null,{"$f":"SUM(I37)","v":0}]
[]
["F.","IZVEDBENA DOKUMENTACIJA DOKUMENTACIJA ZA POTREBE EX CERTIFICIRANJA"]
["1.","Projektna strojarska i elektro dokumentacija na nivou glavnog projektra izrađena od ovlaštenih\nprojektanata, članova komore inženjera\nstrojarstva i elektrotehnike za lakirnicu i sušionicu potrebna za pozitivni nalaz\nMUP - Sektora za eksplozivne atmosfere.\nDokumentacija je u suglasju sa\nsvim aktualnim hrvatskim i EU propisima,\nizmeđu ostaloga sljedećim normama:\nHRN EN 13355:2009 ili jednakovrijednoj\nHRN EN 12215:2009 ili jednakovrijednoj\nHRN EN 1539: 2015 ili jednakovrijednoj\nBGI 740 ili jednakovrijednoj (Njemačke smjernice koje se\nodnose na lakirnice/sušionice i mješaonice\nboja)\nIEC 60079 ili jednakovrijednoj\nDirective 2014/34/EU (ATEX 114) ili jednakovrijednoj\nDirective 99/92/EG (ATEX 153) ili jednakovrijednoj.",null,null,null,"kompl.",1,0,{"$f":"G41*H41","v":0}]
[null,null,null,null,null,"UKUPNO F., Kn:",null,null,{"$f":"SUM(I41)","v":0}]
[]
["A.",{"$f":"B7","v":"VENTILACIJA LAKIRNICE"},null,null,null,null,null,null,{"$f":"I17","v":0}]
["B.",{"$f":"B20","v":"VENTILACIJA PROSTORA SKLADIŠTA"},null,null,null,null,null,null,{"$f":"I24","v":0}]
["C.",{"$f":"B26","v":"ELEKTROINSTALACIJE"},null,null,null,null,null,null,{"$f":"I30","v":0}]
["D.",{"$f":"B32","v":"DODATNA OPREMA LAKIRNICE"},null,null,null,null,null,null,{"$f":"I34","v":0}]
["E.",{"$f":"B36","v":"MONTAŽA SUSTAVA VENTILACIJE"},null,null,null,null,null,null,{"$f":"I38","v":0}]
["F.",{"$f":"B40","v":"IZVEDBENA DOKUMENTACIJA DOKUMENTACIJA ZA POTREBE EX CERTIFICIRANJA"},null,null,null,null,null,null,{"$f":"I42","v":0}]
[]
[null,null,null,null,null,null,null,"UKUPNO BEZ PDV-A, Kn:",{"$f":"SUM(I44:I49)","v":0}]
[null,null,null,null,null,null,null,"PDV:",{"$f":"0.25*I51","v":0}]
[null,null,null,null,null,null,null,"UKUPNO S PDV-om, Kn:",{"$f":"I51+I52","v":0}]